fUSD/lending_fUSD_20251212
["ID","MTS","AMOUNT","RATE_DAILY","PERIOD"]
[398330103,1765537961789,-856.96,0.00038904,30]
[398330104,1765537961798,-1759.45,0.00038904,30]
[398330105,1765537961808,-500.0,0.00038904,30]
[398330106,1765537961817,-500.0,0.00038904,30]
[398330107,1765537961827,-524.23,0.00038904,30]
[398330108,1765537961839,-500.0,0.00038904,30]
[398330109,1765537961849,-472.47153034,0.00038904,30]
[398330110,1765537961858,-288.58148052,0.00038904,30]
[398330111,1765537961868,-500.0,0.00038904,30]
[398330112,1765537961877,-500.0,0.00038904,30]
[398330113,1765537961887,-500.54,0.00038904,30]
[398330114,1765537961896,-500.0,0.00038904,30]
[398330115,1765537961906,-1039.78,0.00038904,30]
[398330116,1765537961915,-551.50957289,0.00038904,30]
[398330117,1765537961925,-730.61,0.00038904,30]
[398330118,1765537961935,-615.84,0.00038904,30]
[398330119,1765537961945,-500.0,0.00038904,30]
[398330120,1765537961955,-500.0,0.00038904,30]
[398330121,1765537961964,-500.0,0.00038904,30]
[398330122,1765537961974,-500.0,0.00038904,30]
[398330123,1765537961984,-647.65,0.00038904,30]
[398330124,1765537961993,-500.0,0.00038904,30]
[398330125,1765537962002,-906.8,0.00038904,30]
[398330126,1765537962012,-551.86,0.00038904,30]
[398330127,1765537962022,-500.0,0.00038904,30]
[398330128,1765537962032,-1472.62,0.00038904,30]
[398330129,1765537962042,-500.0,0.00038904,30]
[398330130,1765537962051,-500.0,0.00038904,30]
[398330131,1765537962061,-500.0,0.00038904,30]
[398330132,1765537962070,-200.0,0.00038904,5]
[398330133,1765537962080,-500.0,0.00038904,30]
[398330134,1765537962089,-500.0,0.00038904,30]
[398330135,1765537962099,-500.0,0.00038904,30]
[398330136,1765537962109,-500.0,0.00038904,30]
[398330137,1765537962123,-500.0,0.00038904,30]
[398330138,1765537962132,-500.0,0.00038904,30]
[398330139,1765537962142,-2737.4,0.00038904,30]
[398330140,1765537962151,-1372.17,0.00038904,30]
[398330141,1765537962161,-500.0,0.00038904,30]
[398330142,1765537962170,-500.0,0.00038904,30]
[398330143,1765537962180,-500.0,0.00038904,30]
[398330144,1765537962189,-500.0,0.00038904,30]
[398330145,1765537962198,-500.0,0.00038904,30]
[398330146,1765537962207,-500.0,0.00038904,30]
[398330147,1765537962217,-500.0,0.00038904,30]
[398330148,1765537962226,-500.0,0.00038904,30]
[398330149,1765537962235,-500.0,0.00038904,30]
[398330150,1765537962244,-500.0,0.00038904,30]
[398330151,1765537962253,-500.0,0.00038904,30]
[398330152,1765537962263,-500.0,0.00038904,30]
[398330153,1765537962272,-2430.46,0.00038904,30]
[398330154,1765537962281,-500.0,0.00038904,30]
[398330155,1765537962291,-500.0,0.00038904,30]
[398330156,1765537962300,-500.0,0.00038904,30]
[398330157,1765537962309,-500.0,0.00038904,30]
[398330158,1765537962319,-500.0,0.00038904,30]
[398330159,1765537962328,-1139.75,0.00038904,30]
[398330160,1765537962337,-500.0,0.00038904,30]
[398330161,1765537962346,-1401.35,0.00038904,30]
[398330162,1765537962355,-500.0,0.00038904,30]
[398330163,1765537962364,-500.0,0.00038904,30]
[398330164,1765537962374,-500.0,0.00038904,30]
[398330165,1765537962384,-500.0,0.00038904,30]
[398330166,1765537962393,-533.82370992,0.00038904,30]
[398330167,1765537962403,-800.13,0.00038904,30]
[398330168,1765537962412,-500.0,0.00038904,30]
[398330169,1765537962421,-1445.96,0.00038904,30]
[398330170,1765537962431,-500.0,0.00038904,30]
[398330171,1765537962440,-500.0,0.00038904,30]
[398330172,1765537962449,-918.45,0.00038904,30]
[398330173,1765537962720,-1070.7,0.00038904,30]
[398330174,1765537962729,-500.0,0.00038904,30]
[398330175,1765537962738,-500.0,0.00038904,30]
[398330176,1765537962747,-500.0,0.00038904,30]
[398330177,1765537962757,-500.0,0.00038904,30]
[398330178,1765537962766,-500.0,0.00038904,30]
[398330179,1765537962775,-2437.96,0.00038904,30]
[398330180,1765537962785,-500.0,0.00038904,30]
[398330181,1765537962797,-500.0,0.00038904,30]
[398330182,1765537962807,-500.0,0.00038904,30]
[398330183,1765537962816,-500.0,0.00038904,30]
[398330184,1765537962826,-592.87,0.00038904,30]
[398330185,1765537962835,-500.0,0.00038904,30]
[398330186,1765537962844,-500.0,0.00038904,30]
[398330187,1765537962853,-500.0,0.00038904,30]
[398330188,1765537962862,-500.0,0.00038904,30]
[398330189,1765537962871,-500.0,0.00038904,30]
[398330190,1765537962881,-500.0,0.00038904,30]
[398330191,1765537962890,-500.0,0.00038904,30]
[398330192,1765537962900,-500.0,0.00038904,30]
[398330193,1765537962910,-542.04,0.00038904,30]
[398330194,1765537962920,-1588.94,0.00038904,30]
[398330195,1765537962929,-500.0,0.00038904,30]
[398330196,1765537962939,-500.0,0.00038904,30]
[398330197,1765537962949,-537.45,0.00038904,30]
[398330198,1765537962958,-500.0,0.00038904,30]
[398330199,1765537962968,-500.0,0.00038904,30]
[398330200,1765537962978,-522.96,0.00038904,30]
[398330201,1765537962987,-500.0,0.00038904,30]
[398330202,1765537962997,-1096.52,0.00038904,30]
[398330203,1765537963007,-500.0,0.00038904,30]
[398330204,1765537963016,-500.0,0.00038904,30]
[398330205,1765537963025,-637.83,0.00038904,30]
[398330206,1765537963035,-500.0,0.00038904,30]
[398330207,1765537963045,-698.44,0.00038904,30]
[398330208,1765537963055,-500.0,0.00038904,30]
[398330209,1765537963066,-500.0,0.00038904,30]
[398330210,1765537963075,-559.81098149,0.00038904,30]
[398330211,1765537963085,-500.0,0.00038904,30]
[398330212,1765537963095,-660.2,0.00038904,30]
[398330213,1765537963104,-500.0,0.00038904,30]
[398330214,1765537963114,-500.0,0.00038904,30]
[398330215,1765537963124,-500.0,0.00038904,30]
[398330216,1765537963133,-500.0,0.00038904,30]
[398330217,1765537963143,-500.0,0.00038904,30]
[398330218,1765537963152,-1065.82,0.00038904,30]
[398330219,1765537963162,-500.0,0.00038904,30]
[398330220,1765537963172,-2027.17,0.00038904,30]
[398330221,1765537963182,-500.0,0.00038904,30]
[398330222,1765537963192,-500.0,0.00038904,30]
[398330223,1765537963202,-500.0,0.00038904,30]
[398330224,1765537963211,-500.0,0.00038904,30]
[398330225,1765537963221,-500.0,0.00038904,30]
[398330226,1765537963230,-500.0,0.00038904,30]
[398330227,1765537963240,-493.7584894,0.00038904,30]
[398330228,1765537963250,-500.0,0.00038904,30]
[398330229,1765537963260,-663.04,0.00038904,30]
[398330230,1765537963269,-500.0,0.00038904,30]
[398330231,1765537963279,-500.0,0.00038904,30]
[398330232,1765537963289,-500.0,0.00038904,30]
[398330233,1765537963299,-500.0,0.00038904,30]
[398330234,1765537963309,-500.0,0.00038904,30]
[398330235,1765537963319,-500.0,0.00038904,30]
[398330236,1765537963328,-500.0,0.00038904,30]
[398330237,1765537963338,-500.0,0.00038904,30]
[398330238,1765537963348,-500.0,0.00038904,30]
[398330239,1765537963358,-500.0,0.00038904,30]
[398330240,1765537963368,-500.0,0.00038904,30]
[398330241,1765537963378,-500.0,0.00038904,30]
[398330242,1765537963387,-500.0,0.00038904,30]
[398330243,1765537963397,-500.0,0.00038904,30]
[398330244,1765537963406,-1034.23,0.00038904,30]
[398330245,1765537963416,-1526.42,0.00038904,30]
[398330246,1765537963425,-500.0,0.00038904,30]
[398330247,1765537963435,-500.0,0.00038904,30]
[398330248,1765537963444,-500.0,0.00038904,30]
[398330249,1765537963453,-500.0,0.00038904,30]
[398330250,1765537963463,-500.0,0.00038904,30]
[398330251,1765537963472,-604.96,0.00038904,30]
[398330252,1765537963481,-500.0,0.00038904,30]
[398330253,1765537963491,-500.0,0.00038904,30]
[398330254,1765537963500,-500.0,0.00038904,30]
[398330255,1765537963509,-500.0,0.00038904,30]
[398330256,1765537963519,-500.0,0.00038904,30]
[398330257,1765537963528,-500.0,0.00038904,30]
[398330258,1765537963537,-500.0,0.00038904,30]
[398330259,1765537963547,-500.0,0.00038904,30]
[398330260,1765537963566,-500.0,0.00038904,30]
[398330261,1765537963578,-500.0,0.00038904,30]
[398330262,1765537963588,-500.0,0.00038904,30]
[398330263,1765537963599,-500.0,0.00038904,30]
[398330264,1765537963610,-500.0,0.00038904,30]
[398330265,1765537963619,-500.0,0.00038904,30]
[398330266,1765537963630,-500.0,0.00038904,30]
[398330267,1765537963640,-500.0,0.00038904,30]
[398330268,1765537963650,-500.0,0.00038904,30]
[398330269,1765537963660,-526.63,0.00038904,30]
[398330270,1765537963670,-500.0,0.00038904,30]
[398330271,1765537963681,-1577.6,0.00038904,30]
[398330272,1765537963691,-500.0,0.00038904,30]
[398330273,1765537963701,-500.0,0.00038904,30]
[398330274,1765537963711,-500.0,0.00038904,30]
[398330275,1765537963722,-500.0,0.00038904,30]
[398330276,1765537963732,-1132.8,0.00038904,30]
[398330277,1765537963742,-570.07,0.00038904,30]
[398330278,1765537963751,-705.52,0.00038904,30]
[398330279,1765537963761,-961.9,0.00038904,30]
[398330280,1765537963771,-500.0,0.00038904,30]
[398330281,1765537963781,-735.82,0.00038904,30]
[398330282,1765537963791,-749.42,0.00038904,30]
[398330283,1765537963801,-1191.88,0.00038904,30]
[398330284,1765537963812,-522.47,0.00038904,30]
[398330285,1765537963822,-4298.84,0.00038904,30]
[398330286,1765537963833,-974.16,0.00038904,30]
[398330287,1765537963846,-500.0,0.00038904,30]
[398330288,1765537963857,-1095.96,0.00038904,30]
[398330289,1765537963867,-500.0,0.00038904,30]
[398330290,1765537963877,-500.0,0.00038904,30]
[398330291,1765537963887,-500.0,0.00038904,30]
[398330292,1765537963897,-500.0,0.00038904,30]
[398330293,1765537963907,-938.71,0.00038904,30]
[398330294,1765537963920,-1397.58,0.00038904,30]
[398330295,1765537963930,-500.0,0.00038904,30]
[398330296,1765537963939,-500.0,0.00038904,30]
[398330297,1765537963949,-500.0,0.00038904,30]
[398330298,1765537963959,-500.0,0.00038904,30]
[398330299,1765537963970,-2368.57,0.00038904,30]
[398330300,1765537963980,-500.0,0.00038904,30]
[398330301,1765537963991,-500.0,0.00038904,30]
[398330302,1765537964001,-500.0,0.00038904,30]
[398330303,1765537964011,-500.0,0.00038904,30]
[398330304,1765537964021,-500.0,0.00038904,30]
[398330305,1765537964031,-508.91,0.00038904,30]
[398330306,1765537964041,-587.64793125,0.00038904,30]
[398330307,1765537964052,-500.0,0.00038904,30]
[398330308,1765537964062,-1181.83,0.00038904,30]
[398330309,1765537964072,-503.06082431,0.00038904,30]
[398330310,1765537964082,-2107.36,0.00038904,30]
[398330311,1765537964093,-545.71695974,0.00038904,30]
[398330312,1765537964103,-591.32,0.00038904,30]
[398330313,1765537964114,-507.35748852,0.00038904,30]
[398330314,1765537964124,-500.0,0.00038904,30]
[398330315,1765537964135,-1407.05,0.00038904,30]
[398330316,1765537964144,-500.0,0.00038904,30]
[398330317,1765537964155,-500.0,0.00038904,30]
[398330318,1765537964165,-500.0,0.00038904,30]
[398330319,1765537964175,-500.0,0.00038904,30]
[398330320,1765537964185,-500.0,0.00038904,30]
[398330321,1765537964195,-712.24,0.00038904,30]
[398330322,1765537964206,-500.0,0.00038904,30]
[398330323,1765537964216,-500.0,0.00038904,30]
[398330324,1765537964226,-500.0,0.00038904,30]
[398330325,1765537964236,-500.0,0.00038904,30]
[398330326,1765537964246,-1000.77,0.00038904,30]
[398330327,1765537964257,-500.0,0.00038904,30]
[398330328,1765537964267,-500.0,0.00038904,30]
[398330329,1765537964278,-500.0,0.00038904,30]
[398330330,1765537964288,-500.0,0.00038904,30]
[398330331,1765537964298,-500.0,0.00038904,30]
[398330332,1765537964308,-1480.01,0.00038904,30]
[398330333,1765537964318,-578.91,0.00038904,30]
[398330334,1765537964329,-796.45,0.00038904,30]
[398330335,1765537964339,-1121.9,0.00038904,30]
[398330336,1765537964350,-538.64,0.00038904,30]
[398330337,1765537964360,-875.09,0.00038904,30]
[398330338,1765537964370,-500.0,0.00038904,30]
[398330339,1765537964379,-500.0,0.00038904,30]
[398330340,1765537964389,-1342.46,0.00038904,30]
[398330341,1765537964399,-500.0,0.00038904,30]
[398330342,1765537964408,-595.4933247,0.00038904,30]
[398330343,1765537964419,-500.0,0.00038904,30]
[398330344,1765537964429,-500.0,0.00038904,30]
[398330345,1765537964438,-500.0,0.00038904,30]
[398330346,1765537964448,-500.0,0.00038904,30]
[398330347,1765537964457,-500.0,0.00038904,30]
[398330348,1765537964467,-500.0,0.00038904,30]
[398330349,1765537964481,-500.0,0.00038904,30]
[398330350,1765537964491,-500.0,0.00038904,30]
[398330351,1765537964501,-551.7,0.00038904,30]
[398330352,1765537964512,-500.0,0.00038904,30]
[398330353,1765537964522,-500.0,0.00038904,7]
[398330354,1765537964531,-500.0,0.00038904,30]
[398330355,1765537964542,-500.0,0.00038904,30]
[398330356,1765537964552,-500.0,0.00038904,30]
[398330357,1765537964562,-500.0,0.00038904,30]
[398330358,1765537964572,-891.01,0.00038904,30]
[398330359,1765537964582,-500.0,0.00038904,30]
[398330360,1765537964592,-500.0,0.00038904,30]
[398330361,1765537964602,-1631.76,0.00038904,30]
[398330362,1765537964611,-500.0,0.00038904,30]
[398330363,1765537964622,-511.07,0.00038904,30]
[398330364,1765537964631,-500.0,0.00038904,30]
[398330365,1765537964643,-500.0,0.00038904,30]
[398330366,1765537964653,-935.63,0.00038904,30]
[398330367,1765537964663,-500.0,0.00038904,30]
[398330368,1765537964673,-500.0,0.00038904,30]
[398330369,1765537964683,-538.66,0.00038904,30]
[398330370,1765537964693,-1213.86,0.00038904,30]
[398330371,1765537964703,-500.0,0.00038904,30]
[398330372,1765537964712,-713.52,0.00038904,30]
[398330373,1765537964722,-500.0,0.00038904,30]
[398330374,1765537964732,-999.59,0.00038904,30]
[398330375,1765537964742,-500.0,0.00038904,30]
[398330376,1765537964751,-601.77414969,0.00038904,30]
[398330377,1765537964761,-762.67,0.00038904,30]
[398330378,1765537964770,-500.0,0.00038904,30]
[398330379,1765537964780,-500.0,0.00038904,30]
[398330380,1765537964791,-500.0,0.00038904,30]
[398330381,1765537964800,-922.65,0.00038904,30]
[398330382,1765537964810,-509.34846408,0.00038904,30]
[398330383,1765537964820,-1139.73,0.00038904,30]
[398330384,1765537964829,-500.0,0.00038904,30]
[398330385,1765537964838,-960.26,0.00038904,30]
[398330386,1765537964848,-500.0,0.00038904,30]
[398330387,1765537964858,-921.07,0.00038904,30]
[398330388,1765537964867,-824.08,0.00038904,30]
[398330389,1765537964877,-500.0,0.00038904,30]
[398330390,1765537964886,-500.0,0.00038904,30]
[398330391,1765537964896,-500.0,0.00038904,30]
[398330392,1765537964906,-500.0,0.00038904,30]
[398330393,1765537964916,-1836.88,0.00038904,30]
[398330394,1765537965469,-500.0,0.00038904,30]
[398330395,1765537965486,-500.0,0.00038904,30]
[398330396,1765537965497,-500.0,0.00038904,30]
[398330397,1765537965506,-500.0,0.00038904,30]
[398330398,1765537965516,-500.0,0.00038904,30]
[398330399,1765537965526,-500.0,0.00038904,30]
[398330400,1765537965536,-807.06,0.00038904,30]
[398330401,1765537965545,-505.26368567,0.00038904,30]
[398330402,1765537965555,-1304.95,0.00038904,30]
[398330403,1765537965566,-500.0,0.00038904,30]
[398330404,1765537965576,-1005.91,0.00038904,30]
[398330405,1765537965586,-500.0,0.00038904,30]
[398330406,1765537965596,-1051.07,0.00038904,30]
[398330407,1765537965607,-500.0,0.00038904,30]
[398330408,1765537965617,-500.0,0.00038904,30]
[398330409,1765537965627,-500.0,0.00038904,30]
[398330410,1765537965636,-929.4,0.00038904,30]
[398330411,1765537965647,-500.0,0.00038904,30]
[398330412,1765537965657,-486.31288352,0.00038904,30]
[398330413,1765537965666,-485.70699136,0.00038904,30]
[398330414,1765537965676,-500.0,0.00038904,30]
[398330415,1765537965686,-500.0,0.00038904,30]
[398330416,1765537965696,-500.0,0.00038904,30]
[398330417,1765537965706,-500.0,0.00038904,30]
[398330418,1765537965715,-500.0,0.00038904,30]
[398330419,1765537965725,-500.0,0.00038904,30]
[398330420,1765537965737,-500.0,0.00038904,30]
[398330421,1765537965748,-514.3776317,0.00038904,30]
[398330422,1765537965757,-621.09,0.00038904,30]
[398330423,1765537965767,-500.0,0.00038904,30]
[398330424,1765537965776,-500.0,0.00038904,30]
[398330425,1765537965786,-500.0,0.00038904,30]
[398330426,1765537965796,-1874.12,0.00038904,30]
[398330427,1765537965805,-500.0,0.00038904,30]
[398330428,1765537965815,-500.0,0.00038904,30]
[398330429,1765537965825,-500.0,0.00038904,30]
[398330430,1765537965837,-500.0,0.00038904,30]
[398330431,1765537965848,-500.0,0.00038904,30]
[398330432,1765537965858,-500.0,0.00038904,30]
[398330433,1765537965869,-521.95,0.00038904,30]
[398330434,1765537965879,-500.0,0.00038904,30]
[398330435,1765537965889,-500.0,0.00038904,30]
[398330436,1765537965899,-500.0,0.00038904,30]
[398330437,1765537965909,-500.0,0.00038904,30]
[398330438,1765537965919,-500.0,0.00038904,25]
[398330439,1765537965929,-500.0,0.00038904,30]
[398330440,1765537965939,-578.01,0.00038904,30]
[398330441,1765537965949,-500.0,0.00038904,12]
[398330442,1765537965959,-500.0,0.00038904,30]
[398330443,1765537965968,-500.0,0.00038904,30]
[398330444,1765537965978,-500.0,0.00038904,30]
[398330445,1765537965987,-701.87,0.00038904,30]
[398330446,1765537965997,-500.0,0.00038904,30]
[398330447,1765537966006,-667.26,0.00038904,7]
[398330448,1765537966016,-532.36,0.00038904,30]
[398330449,1765537966026,-500.0,0.00038904,30]
[398330450,1765537966036,-500.0,0.00038904,30]
[398330451,1765537966045,-890.33,0.00038904,30]
[398330452,1765537966055,-505.61700495,0.00038904,30]
[398330453,1765537966066,-619.34,0.00038904,30]
[398330454,1765537966076,-500.0,0.00038904,30]
[398330455,1765537966086,-500.0,0.00038904,30]
[398330456,1765537966096,-500.0,0.00038904,30]
[398330457,1765537966105,-666.66,0.00038904,30]
[398330459,1765537966115,-500.0,0.00038904,30]
[398330460,1765537966124,-679.95,0.00038904,30]
[398330461,1765537966134,-500.0,0.00038904,30]
[398330462,1765537966144,-500.0,0.00038904,30]
[398330463,1765537966154,-846.97,0.00038904,30]
[398330464,1765537966163,-1622.6,0.00038904,30]
[398330465,1765537966178,-500.0,0.00038904,30]
[398330466,1765537966188,-500.0,0.00038904,30]
[398330467,1765537966198,-500.0,0.00038904,30]
[398330468,1765537966208,-500.0,0.00038904,30]
[398330469,1765537966218,-500.0,0.00038904,30]
[398330470,1765537966228,-500.0,0.00038904,30]
[398330471,1765537966238,-500.0,0.00038904,30]
[398330472,1765537966248,-1634.93,0.00038904,30]
[398330473,1765537966259,-1372.09,0.00038904,30]
[398330474,1765537966269,-867.67,0.00038904,30]
[398330475,1765537966279,-500.0,0.00038904,30]
[398330476,1765537966290,-500.0,0.00038904,30]
[398330477,1765537966301,-500.0,0.00038904,30]
[398330478,1765537966311,-500.0,0.00038904,30]
[398330479,1765537966321,-500.0,0.00038904,30]
[398330480,1765537966331,-500.0,0.00038904,30]
[398330481,1765537966340,-197.65548124,0.00038904,30]
[398330482,1765537966350,-500.0,0.00038904,30]
[398330483,1765537966361,-630.63,0.00038904,30]
[398330484,1765537966371,-500.0,0.00038904,30]
[398330485,1765537966380,-500.0,0.00038904,30]
[398330486,1765537966390,-1368.81,0.00038904,30]
[398330487,1765537966399,-511.84904913,0.00038904,30]
[398330488,1765537966409,-500.0,0.00038904,30]
[398330489,1765537966419,-500.0,0.00038904,30]
[398330490,1765537966429,-626.64,0.00038904,30]
[398330491,1765537966438,-500.0,0.00038904,30]
[398330492,1765537966448,-500.0,0.00038904,30]
[398330493,1765537966458,-500.0,0.00038904,30]
[398330494,1765537966468,-500.0,0.00038904,30]
[398330495,1765537966478,-500.0,0.00038904,30]
[398330496,1765537966487,-1191.7,0.00038904,30]
[398330497,1765537966497,-500.0,0.00038904,30]
[398330498,1765537966509,-2251.55,0.00038904,30]
[398330500,1765537966518,-500.0,0.00038904,30]
[398330501,1765537966528,-1877.84,0.00038904,30]
[398330502,1765537966538,-500.0,0.00038904,30]
[398330503,1765537966548,-554.25,0.00038904,30]
[398330504,1765537966557,-500.0,0.00038904,30]
[398330505,1765537966567,-553.11610023,0.00038904,15]
[398330506,1765537966577,-500.0,0.00038904,30]
[398330507,1765537966586,-500.0,0.00038904,30]
[398330508,1765537966596,-500.0,0.00038904,30]
[398330509,1765537966606,-500.0,0.00038904,30]
[398330510,1765537966616,-1066.72,0.00038904,30]
[398330511,1765537966626,-500.0,0.00038904,30]
[398330512,1765537966636,-500.0,0.00038904,30]
[398330513,1765537966645,-500.0,0.00038904,30]
[398330514,1765537966656,-620.95,0.00038904,30]
[398330515,1765537966666,-500.0,0.00038904,30]
[398330516,1765537966675,-161.01686071,0.00038904,30]
[398330517,1765537966685,-500.0,0.00038904,30]
[398330518,1765537966695,-500.0,0.00038904,30]
[398330519,1765537966705,-1109.61,0.00038904,30]
[398330520,1765537966715,-500.0,0.00038904,30]
[398330521,1765537966725,-500.0,0.00038904,30]
[398330522,1765537966735,-2254.72,0.00038904,30]
[398330523,1765537966745,-500.0,0.00038904,30]
[398330524,1765537966755,-500.0,0.00038904,30]
[398330525,1765537966764,-500.0,0.00038904,30]
[398330526,1765537966775,-500.0,0.00038904,30]
[398330527,1765537966784,-500.0,0.00038904,30]
[398330528,1765537966794,-500.0,0.00038904,30]
[398330529,1765537966804,-1451.06,0.00038904,30]
[398330530,1765537966814,-500.0,0.00038904,30]
[398330531,1765537966824,-500.0,0.00038904,30]
[398330532,1765537966834,-524.1,0.00038904,30]
[398330533,1765537966853,-500.0,0.00038904,30]
[398330534,1765537966864,-500.0,0.00038904,30]
[398330535,1765537966873,-535.99,0.00038904,30]
[398330536,1765537966884,-1647.96,0.00038904,30]
[398330537,1765537966894,-500.0,0.00038904,30]
[398330538,1765537966904,-500.0,0.00038904,30]
[398330539,1765537966913,-500.0,0.00038904,30]
[398330540,1765537966923,-500.0,0.00038904,30]
[398330541,1765537966933,-1607.35,0.00038904,30]
[398330542,1765537966943,-500.0,0.00038904,30]
[398330543,1765537966952,-500.0,0.00038904,30]
[398330544,1765537966962,-500.0,0.00038904,30]
[398330545,1765537966974,-1890.33,0.00038904,30]
[398330546,1765537966983,-500.0,0.00038904,30]
[398330547,1765537966993,-702.35,0.00038904,30]
[398330548,1765537967003,-500.0,0.00038904,30]
[398330549,1765537967013,-1448.32,0.00038904,30]
[398330550,1765537967023,-1632.19,0.00038904,30]
[398330551,1765537967033,-500.0,0.00038904,30]
[398330552,1765537967043,-500.0,0.00038904,30]
[398330553,1765537967053,-876.83,0.00038904,30]
[398330554,1765537967063,-832.79,0.00038904,30]
[398330555,1765537967072,-500.0,0.00038904,30]
[398330556,1765537967082,-500.0,0.00038904,30]
[398330557,1765537967092,-500.0,0.00038904,30]
[398330558,1765537967103,-623.5,0.00038904,30]
[398330559,1765537967114,-500.0,0.00038904,30]
[398330560,1765537967124,-500.0,0.00038904,30]
[398330561,1765537967134,-2761.6,0.00038904,30]
[398330562,1765537967144,-557.56345206,0.00038904,30]
[398330563,1765537967154,-604.56,0.00038904,30]
[398330564,1765537967163,-769.61,0.00038904,30]
[398330565,1765537967173,-1014.43,0.00038904,30]
[398330566,1765537967183,-500.0,0.00038904,30]
[398330567,1765537967192,-500.0,0.00038904,30]
[398330568,1765537967202,-500.0,0.00038904,30]
[398330569,1765537967212,-500.0,0.00038904,30]
[398330570,1765537967222,-507.93577745,0.00038904,30]
[398330571,1765537967232,-500.0,0.00038904,30]
[398330572,1765537967242,-500.0,0.00038904,30]
[398330573,1765537967251,-799.32,0.00038904,30]
[398330574,1765537967261,-977.53,0.00038904,30]
[398330575,1765537967271,-502.51115111,0.00038904,30]
[398330576,1765537967281,-500.0,0.00038904,30]
[398330577,1765537967290,-500.0,0.00038904,30]
[398330578,1765537967299,-1062.18,0.00038904,30]
[398330579,1765537967308,-519.19093673,0.00038904,30]
[398330580,1765537967318,-882.68,0.00038904,30]
[398330581,1765537967327,-502.48,0.00038904,30]
[398330582,1765537967337,-500.0,0.00038904,30]
[398330583,1765537967346,-500.0,0.00038904,30]
[398330584,1765537967355,-500.0,0.00038904,30]
[398330585,1765537967365,-500.0,0.00038904,30]
[398330586,1765537967374,-500.0,0.00038904,30]
[398330587,1765537967384,-153.83777752,0.00038904,30]
[398330588,1765537967393,-907.2,0.00038904,30]
[398330589,1765537967402,-500.0,0.00038904,30]
[398330590,1765537967411,-566.21,0.00038904,30]
[398330591,1765537967421,-270.34993013,0.00038904,30]
[398330592,1765537967430,-515.26729508,0.00038904,30]
[398330593,1765537967440,-786.93,0.00038904,30]
[398330594,1765537967449,-1677.04,0.00038904,30]
[398330595,1765537967458,-334.04458052,0.00038904,30]
[398330596,1765537967468,-1523.05,0.00038904,30]
[398330597,1765537967478,-500.0,0.00038904,30]
[398330598,1765537967488,-500.0,0.00038904,30]
[398330599,1765537967498,-623.75,0.00038904,30]
[398330600,1765537967508,-646.21,0.00038904,30]
[398330601,1765537967517,-500.0,0.00038904,30]
[398330602,1765537967527,-500.0,0.00038904,30]
[398330603,1765537967536,-500.0,0.00038904,30]
[398330604,1765537967546,-500.0,0.00038904,30]